bitfinex/quotes_ETHUSD_20250430
["timestamp","ask_amount","ask_price","bid_price","bid_amount"]
[1746020444998,5.582,1763.1,1763.0,0.817]
[1746020445203,5.582,1763.1,1763.0,0.97753449]
[1746020446385,5.582,1763.1,1763.0,0.16053449]
[1746020446580,5.582,1763.1,1762.7,6.6240895]
[1746020446894,5.582,1763.1,1762.8,0.16053449]
[1746020450042,5.582,1763.1,1762.4,1.0819]
[1746020450219,18.751,1763.0,1762.9,0.14771]
[1746020450528,18.751,1763.0,1762.1,1.0561]
[1746020450898,18.751,1763.0,1762.2,0.14771]
[1746020451491,18.751,1763.0,1762.5,1.0524]
[1746020452096,18.751,1763.0,1762.6,0.14771]
[1746020452824,18.751,1763.0,1762.2,1.0672]
[1746020453028,18.751,1763.0,1762.3,0.14771]
[1746020453593,18.751,1763.0,1762.3,0.69771]
[1746020453891,18.751,1763.0,1762.4,3.0]
[1746020454513,5.737,1763.2,1762.5,1.21901]
[1746020454730,5.737,1763.2,1762.6,0.55]
[1746020455303,5.737,1763.2,1762.7,0.14771]
[1746020455491,5.737,1763.2,1762.7,3.57670878]
[1746020455697,5.737,1763.2,1762.8,1.0039]
[1746020456033,5.737,1763.2,1762.8,1.15161]
[1746020456900,5.737,1763.2,1762.8,0.14771]
[1746020457923,5.737,1763.2,1762.5,1.07343492]
[1746020458098,5.737,1763.2,1762.9,0.14771]
[1746020458299,5.737,1763.2,1762.6,0.55]
[1746020458511,5.737,1763.2,1763.0,0.14771]
[1746020458711,5.737,1763.2,1762.6,0.55]
[1746020458914,5.737,1763.2,1763.1,0.14771]
[1746020459406,5.737,1763.2,1762.5,6.8509895]
[1746020459603,5.737,1763.2,1762.6,0.14771]
[1746020459810,5.737,1763.2,1762.7,0.55]
[1746020460008,5.737,1763.2,1762.5,7.89108845]
[1746020460235,5.737,1763.2,1762.6,0.69771]
[1746020460695,5.737,1763.2,1762.6,0.14771]
[1746020461419,14.208,1763.1,1762.1,5.8342895]
[1746020461610,5.737,1763.2,1762.2,0.14771]
[1746020461810,0.55,1763.0,1761.6,6.8638895]
[1746020462022,0.75,1763.0,1761.7,0.13540083]
[1746020462227,8.963,1762.8,1761.7,0.13540083]
[1746020462562,3.0,1762.6,1761.7,0.13540083]
[1746020463054,8.963,1762.6,1761.8,0.14763486]
[1746020463557,0.55,1762.5,1761.3,5.8342895]
[1746020463759,6.513,1762.5,1761.9,0.15080121]
[1746020463916,3.0,1762.3,1761.3,5.8342895]
[1746020464117,5.737,1762.2,1761.3,5.8342895]
[1746020464311,5.737,1762.2,1761.1,1.0033]
[1746020464312,3.0,1762.1,1761.4,0.15080121]
[1746020464618,3.0,1762.1,1760.8,2.88841866]
[1746020464619,14.767,1762.0,1760.8,2.88841866]
[1746020464820,3.0,1762.1,1761.0,2.85446865]
[1746020465047,3.0,1762.1,1760.8,2.88841866]
[1746020465355,0.55,1762.0,1761.0,2.85446865]
[1746020465853,0.55,1762.0,1760.7,2.83887531]
[1746020466261,0.55,1762.0,1760.9,2.8217713]
[1746020466555,3.2,1762.1,1760.8,0.15080121]
[1746020466556,3.55,1761.3,1760.8,0.15080121]
[1746020466758,12.3567243,1761.1,1760.0,37.6464971]
[1746020466957,3.0,1760.9,1760.0,37.6464971]
[1746020467128,5.738,1760.8,1760.1,0.12606623]
[1746020467335,5.738,1760.7,1760.1,0.12606623]
[1746020467660,5.738,1760.6,1760.1,2.94411806]
[1746020467861,5.738,1760.5,1760.1,2.94411806]
[1746020468023,5.738,1760.4,1760.1,2.94411806]
[1746020468330,24.495,1760.3,1760.1,0.12606623]
[1746020468665,24.495,1760.2,1760.0,40.46336809]
[1746020468822,18.757,1760.2,1760.0,40.46336809]
[1746020469138,5.741,1760.1,1760.0,37.62256333]
[1746020469523,5.741,1760.1,1760.0,37.74375684]
[1746020469728,19.973,1760.1,1760.0,37.74375684]
[1746020470264,5.741,1760.1,1760.0,37.74375684]
[1746020470917,19.973,1760.1,1760.0,34.37225684]
[1746020471118,22.973,1760.1,1760.0,34.22225684]
[1746020471350,5.741,1760.1,1760.0,34.22225684]
[1746020471865,8.741,1760.1,1760.0,30.48159462]
[1746020472028,8.741,1760.1,1760.0,18.91143214]
[1746020472356,23.725,1760.1,1760.0,10.37001965]
[1746020472563,24.15630417,1760.1,1760.0,2.20524538]
[1746020473153,0.75,1759.9,1759.8,0.7333329]
[1746020473371,14.988,1759.9,1759.8,0.7333329]
[1746020473581,23.7947243,1759.9,1759.8,0.7333329]
[1746020473926,23.2447243,1759.9,1759.8,0.7333329]
[1746020474126,23.7947243,1759.9,1759.8,0.6333329]
[1746020474355,3.2,1759.8,1758.8,2.0]
[1746020474566,8.8067243,1759.2,1757.8,4.89404329]
[1746020474772,27.472,1759.1,1757.8,4.89404329]
[1746020474977,0.55,1759.0,1757.8,2.0]
[1746020475142,0.55,1758.8,1757.8,2.0]
[1746020475342,0.55,1758.8,1757.8,0.24001091]
[1746020475343,3.0,1758.6,1757.8,0.24001091]
[1746020475550,20.503,1758.5,1757.8,0.24001091]
[1746020475748,3.0,1758.4,1757.8,0.24001091]
[1746020476057,3.0,1758.2,1757.8,0.24001091]
[1746020476264,33.031,1758.1,1757.8,0.24001091]
[1746020476428,5.703,1758.0,1757.8,0.24001091]
[1746020476628,18.779,1758.1,1757.8,0.24001091]
[1746020476830,5.703,1758.0,1757.8,0.24001091]
[1746020477073,18.779,1758.1,1757.8,0.24001091]
[1746020477569,5.703,1758.0,1757.8,0.19001091]
[1746020477876,18.779,1758.6,1757.8,0.19001091]
[1746020478393,3.55,1758.2,1757.8,0.19001091]
[1746020478599,8.8067243,1757.7,1757.0,2.81752024]
[1746020478876,9.3567243,1757.1,1756.9,2.0]
[1746020479194,9.3567243,1757.1,1755.9,2.34536169]
[1746020479195,38.755,1757.0,1756.2,2.83873356]
[1746020479629,3.0,1756.9,1756.0,2.88631575]
[1746020479832,16.55,1757.5,1756.2,2.83873356]
[1746020479833,14.262,1756.8,1756.2,2.83873356]
[1746020480057,0.2,1758.7,1756.3,1.0156]
[1746020480255,0.2,1758.7,1756.2,6.06163095]
[1746020480256,0.2,1758.4,1756.8,6.39157373]
[1746020480561,0.2,1758.4,1756.6,1.0156]
[1746020480562,3.0,1758.1,1756.6,1.0156]
[1746020480824,8.8067243,1758.2,1756.6,1.0156]
[1746020480939,6.45,1758.0,1756.8,3.0]
[1746020481139,0.2,1758.4,1756.7,1.0156]
[1746020481351,8.8067243,1758.1,1756.7,1.0156]
[1746020481551,8.8067243,1758.0,1756.5,1.0156]
[1746020481759,3.0,1757.3,1756.2,2.83873356]
[1746020481954,25.246,1757.2,1756.2,2.83873356]
[1746020482173,25.246,1757.2,1755.9,1.45992625]
[1746020482174,3.0,1757.1,1755.9,1.45992625]
[1746020482470,8.8067243,1756.0,1755.3,0.34716923]
[1746020482689,18.796,1755.9,1755.4,2.89714152]
[1746020482889,6.893,1755.8,1755.4,2.89714152]
[1746020483193,25.689,1755.7,1755.3,3.15855275]
[1746020483331,18.796,1755.7,1755.3,3.15855275]
[1746020483536,6.893,1755.6,1755.3,0.34716923]
[1746020483777,21.162,1755.6,1755.3,0.34716923]
[1746020483935,6.893,1755.6,1755.4,2.89714152]
[1746020484137,0.2,1754.9,1754.0,0.4092302]
[1746020484363,8.8067243,1754.1,1754.0,0.4092302]
[1746020484568,16.0347243,1754.1,1754.0,0.4092302]
[1746020484767,30.3217243,1754.1,1754.0,0.4092302]
[1746020484980,14.287,1754.1,1753.2,2.84801798]
[1746020485146,18.808,1754.3,1753.2,3.62535836]
[1746020485702,8.8067243,1754.2,1753.2,2.84801798]
[1746020486157,21.512,1754.1,1753.2,2.84801798]
[1746020486348,14.284,1754.1,1753.2,2.84801798]
[1746020486546,8.131,1754.0,1753.2,2.84801798]
[1746020486891,22.424,1753.9,1753.2,2.84801798]
[1746020487058,16.0,1754.6,1753.2,3.84471798]
[1746020487392,8.138,1754.5,1753.4,2.87323526]
[1746020487594,8.138,1754.5,1753.3,2.80567185]
[1746020487947,8.8067243,1754.2,1753.5,2.88973444]
[1746020488155,22.424,1754.1,1753.5,2.88973444]
[1746020488501,8.138,1754.5,1753.6,2.85195766]
[1746020488704,8.138,1754.5,1753.1,1.0591]
[1746020488705,8.12754895,1754.5,1753.2,2.84801798]
[1746020488997,8.12754895,1754.5,1753.7,2.87964829]
[1746020489350,8.12754895,1754.5,1752.9,2.0]
[1746020489351,8.12754895,1754.5,1753.9,1.0391]
[1746020489550,8.138,1754.7,1753.9,1.0391]
[1746020489813,8.138,1754.7,1753.9,1.74465852]
[1746020489976,8.138,1754.7,1753.9,3.89257939]
[1746020490185,18.822,1754.8,1754.3,2.88719771]
[1746020490348,18.822,1754.8,1754.2,3.0]
[1746020490349,8.141,1755.3,1754.5,2.84000657]
[1746020490553,8.141,1755.4,1754.5,2.84000657]
[1746020490869,8.141,1755.6,1754.5,2.84000657]
[1746020491200,8.141,1755.6,1754.9,1.0697]
[1746020491365,8.141,1756.5,1755.3,3.88108352]
[1746020491568,8.8067243,1756.7,1755.3,3.88108352]
[1746020491805,8.141,1756.6,1755.5,2.80208831]
[1746020492117,8.141,1756.5,1755.4,2.89714152]
[1746020492257,8.141,1756.5,1755.5,5.80208831]
[1746020492452,8.141,1756.5,1755.6,2.9559311]
[1746020492702,23.0717243,1756.4,1755.6,0.1218187]
[1746020492853,3.0,1756.3,1755.0,2.89278811]
[1746020493053,11.141,1756.3,1755.0,2.89278811]
[1746020493253,18.83,1756.9,1755.4,2.89714152]
[1746020493476,18.83,1756.9,1755.5,2.92390701]
[1746020493477,8.141,1756.5,1755.5,2.92390701]
[1746020493812,8.141,1756.5,1755.6,5.8341124]
[1746020494019,8.141,1756.5,1755.7,2.92419625]
[1746020494222,8.141,1756.5,1755.7,2.80237755]
[1746020494374,8.141,1756.5,1755.4,2.89714152]
[1746020494568,8.141,1756.5,1755.7,2.80237755]
[1746020495384,14.264,1756.4,1755.7,2.80237755]
[1746020495593,14.264,1756.4,1755.6,2.95658606]
[1746020495889,8.141,1756.5,1755.6,2.95658606]
[1746020496097,27.6367243,1756.9,1755.4,2.89714152]
[1746020496425,27.6367243,1756.9,1755.6,2.8341124]
[1746020496426,8.14,1756.8,1755.6,2.8341124]
[1746020496623,3.0,1756.6,1755.4,2.89714152]
[1746020496923,8.8067243,1756.5,1755.4,2.89714152]
[1746020497099,0.55,1756.4,1755.4,2.89714152]
[1746020497300,3.0,1756.3,1755.4,2.89714152]
[1746020497516,22.407,1756.2,1755.0,2.89278811]
[1746020497718,8.14,1756.2,1755.0,2.89278811]
[1746020497891,8.14,1756.2,1755.2,2.82048975]
[1746020498092,8.14,1756.2,1755.0,3.31290689]
[1746020498425,8.8067243,1756.5,1755.4,2.89714152]
[1746020498630,8.14,1756.4,1755.1,2.88222551]
[1746020498945,8.14,1756.4,1755.3,2.81138352]
[1746020499099,14.267,1756.3,1755.3,2.81138352]
[1746020499294,0.55,1756.2,1755.0,2.89278811]
[1746020499832,0.55,1756.0,1755.0,2.89278811]
[1746020500036,18.83,1755.9,1754.4,2.88289844]
[1746020500210,0.55,1755.6,1754.5,0.12090011]
[1746020500535,0.55,1755.2,1753.8,1.0229]
[1746020500705,8.8067243,1755.0,1753.9,2.85347939]
[1746020500905,18.83,1754.9,1753.9,2.9743795]
[1746020501121,18.83,1754.9,1752.9,2.0]
[1746020501122,0.2,1754.6,1752.9,2.0]
[1746020501307,8.8067243,1753.6,1753.0,2.8451582]
[1746020501507,8.8067243,1753.3,1752.4,10.4476584]
[1746020501709,8.8067243,1753.3,1752.5,2.81119956]
[1746020502021,8.8067243,1753.0,1752.4,13.32258999]
[1746020502336,8.8067243,1752.7,1752.4,7.51469909]
[1746020502520,33.132,1752.6,1752.4,7.51469909]
[1746020503341,33.132,1752.6,1752.4,10.38963068]
[1746020503547,16.0,1753.5,1752.6,14.295]
[1746020503718,18.837,1753.2,1752.7,2.82986626]
[1746020503921,14.292,1753.1,1752.7,3.0]
[1746020504146,14.292,1753.1,1752.6,17.16315725]
[1746020504450,14.289,1753.1,1752.8,2.85808269]
[1746020504744,14.289,1753.1,1752.7,3.0]
[1746020504745,14.289,1753.1,1752.7,2.82986626]
[1746020504908,13.13868642,1753.3,1752.6,14.295]
[1746020505109,8.757,1753.2,1752.7,2.82986626]
[1746020505371,14.289,1753.1,1752.8,5.85808269]
[1746020505508,6.8642,1753.2,1752.5,2.81119956]
[1746020505708,6.8642,1753.2,1752.5,5.81119956]
[1746020505943,14.289,1753.1,1752.6,5.86815725]
[1746020506167,0.2963,1753.4,1752.7,2.82986626]
[1746020506419,0.2963,1753.4,1753.1,1.1688]
[1746020506648,0.2963,1753.4,1753.2,0.11872534]
[1746020506817,18.837,1753.9,1753.3,0.10883156]
[1746020507219,16.0,1754.9,1753.3,0.10883156]
[1746020507220,18.844,1754.6,1753.3,0.10883156]
[1746020507420,22.54749786,1755.1,1753.6,0.55]
[1746020507737,8.757,1754.6,1753.8,2.89992347]
[1746020507937,8.757,1754.6,1752.9,2.83558222]
[1746020508151,8.757,1754.6,1752.6,12.15084481]
[1746020508327,8.757,1754.6,1752.6,11.62615725]
[1746020508533,0.1401,1754.9,1752.9,2.83558222]
[1746020508734,8.758,1754.9,1753.9,2.8197554]
[1746020508933,8.758,1754.9,1753.8,2.83830209]
[1746020509133,8.758,1754.9,1753.9,2.8197554]
[1746020509340,8.758,1754.9,1753.3,12.21248832]
[1746020509504,8.758,1754.9,1753.7,2.85334801]
[1746020509709,0.1401,1754.8,1753.1,2.88136657]
[1746020509908,0.1401,1754.8,1753.5,2.8110678]
[1746020510141,8.9468243,1754.8,1752.9,2.82802315]
[1746020510306,8.758,1754.7,1753.2,3.0]
[1746020510508,8.758,1754.7,1753.5,2.8110678]
[1746020510749,8.758,1754.7,1753.9,2.8197554]
[1746020510960,8.753,1754.7,1754.0,5.87868243]
[1746020511183,0.1401,1754.8,1754.0,5.87868243]
[1746020511333,8.759,1754.9,1754.0,5.87868243]
[1746020511535,18.844,1755.1,1754.6,2.83513353]
[1746020511868,14.273,1755.0,1754.4,2.80407575]
[1746020512189,14.275,1755.0,1754.3,5.83497383]
[1746020512348,4.11076501,1755.1,1754.3,5.83497383]
[1746020512542,4.11076501,1755.1,1753.9,1.2093]
[1746020512737,4.11076501,1755.1,1754.2,2.88344716]
[1746020512942,14.4171,1755.0,1754.1,3.0]
[1746020513264,8.8991,1755.4,1754.4,2.80407575]
[1746020513463,0.1401,1755.4,1754.5,5.81880385]
[1746020513653,18.847,1755.8,1754.8,5.87739601]
[1746020513654,18.9871,1755.8,1754.8,5.87739601]
[1746020513857,8.758,1755.7,1754.8,5.87739601]
[1746020514461,14.271,1755.6,1754.7,2.82682181]
[1746020514871,0.1401,1755.5,1754.4,2.80407575]
[1746020515076,8.8067243,1755.2,1754.1,2.80741632]
[1746020515242,8.8981,1755.1,1753.9,2.8197554]
[1746020515449,9.3567243,1754.8,1753.2,4.1070067]
[1746020515669,18.9871,1754.7,1753.2,4.51770737]
[1746020516278,18.847,1754.7,1753.8,1.7208]
[1746020516497,18.847,1754.7,1754.1,2.80741632]
[1746020516674,18.847,1754.7,1754.4,3.0]
[1746020516877,23.035,1755.0,1754.5,2.86263286]
[1746020517063,0.50082014,1754.9,1754.3,2.85113532]
[1746020517265,0.2,1756.6,1755.1,17.31030731]
[1746020517511,8.759,1755.6,1755.1,17.31030731]
[1746020517800,9.26848692,1755.5,1755.1,8.02223913]
[1746020517963,9.26848692,1755.5,1755.2,3.0]
[1746020518282,0.50948692,1755.5,1755.2,3.0]
[1746020518690,23.031,1755.4,1755.2,3.0]
[1746020519085,8.759,1755.4,1754.7,3.0]
[1746020519437,14.273,1755.3,1754.6,5.8119383]
[1746020519732,8.759,1755.4,1754.6,5.8119383]
[1746020520424,27.607,1756.0,1754.7,1.7671]
[1746020520612,8.8067243,1755.3,1754.2,2.82737101]
[1746020520807,1.68273428,1755.1,1754.1,2.89550878]
[1746020521012,27.10317987,1755.0,1753.5,4.15993373]
[1746020521333,5.29798518,1754.8,1753.5,4.15993373]
[1746020521514,5.963,1755.8,1753.5,4.15993373]
[1746020521515,16.0,1755.2,1755.0,2.8920589]
[1746020521693,56.4047243,1755.1,1755.0,2.84480361]
[1746020522000,41.884,1755.1,1754.9,18.846]
[1746020522200,33.126,1755.1,1755.0,2.85337557]
[1746020522416,70.6827243,1755.1,1755.0,2.85337557]
[1746020522615,50.6907243,1755.1,1755.0,2.85337557]
[1746020522847,41.884,1755.1,1755.0,2.85337557]
[1746020523053,32.476,1755.1,1755.0,5.85337557]
[1746020523196,23.028,1755.7,1755.1,3.0]
[1746020523396,23.028,1755.7,1755.0,3.0]
[1746020523397,14.27,1755.7,1755.0,0.55]
[1746020523658,18.847,1756.0,1754.9,1.2814]
[1746020523827,18.847,1756.0,1755.4,2.83148224]
[1746020523995,14.267,1755.9,1755.5,3.0]
[1746020524195,3.70349786,1756.4,1755.8,2.83001924]
[1746020524424,3.70349786,1756.4,1755.9,3.0]
[1746020524646,3.70349786,1756.4,1756.0,1.2439]
[1746020525710,3.70349786,1756.4,1756.2,3.0]
[1746020525900,12.45849786,1756.4,1756.0,1.2439]
[1746020526125,8.755,1756.5,1756.4,12.45849786]
[1746020526565,7.0049352,1757.3,1756.5,3.0]
[1746020527139,7.0049352,1757.3,1756.7,5.87528097]
[1746020527464,15.7599352,1757.3,1756.7,5.87528097]
[1746020527827,15.7599352,1757.3,1756.4,1.2146]
[1746020528427,14.258,1756.8,1756.4,1.2146]
[1746020528760,15.7599352,1757.3,1756.5,2.80543973]
[1746020529058,7.0049352,1757.3,1756.5,2.80543973]
[1746020529360,15.7569352,1757.3,1756.5,2.80543973]
[1746020529560,14.257,1757.0,1756.5,2.80543973]
[1746020529786,15.7569352,1757.3,1756.5,2.80543973]
[1746020529930,15.7569352,1757.3,1756.2,2.84450646]
[1746020530259,7.0049352,1757.3,1756.4,2.88356998]
[1746020530460,7.0049352,1757.3,1756.7,5.80010772]
[1746020530664,30.0119352,1757.3,1756.7,5.80010772]
[1746020530848,15.7569352,1757.3,1756.8,1.254]
[1746020531064,7.0049352,1757.3,1756.8,1.254]
[1746020531265,3.44506859,1756.9,1756.8,1.254]
[1746020531669,7.0049352,1757.3,1756.8,1.95941077]
[1746020531874,7.0049352,1757.3,1756.9,1.2201]
[1746020532071,6.14851344,1757.3,1756.9,0.55]
[1746020532384,5.60651344,1757.3,1756.9,0.55]
[1746020532586,11.45680512,1757.4,1757.1,0.55]
[1746020532900,8.20676104,1757.7,1757.1,3.75]
[1746020533064,8.20676104,1757.7,1757.6,2.80908813]
[1746020533252,6.91436104,1757.7,1757.6,15.10908813]
[1746020533921,6.91436104,1757.7,1757.6,14.55908813]
[1746020534572,9.36188571,1757.8,1757.7,5.80929884]
[1746020534573,1.36208571,1757.8,1757.7,5.80929884]
[1746020535168,1.36208571,1757.8,1757.7,6.35929884]
[1746020535368,6.12163142,1758.8,1757.8,0.55]
[1746020535562,6.12163142,1758.8,1757.7,6.23905094]
[1746020535806,8.748,1758.7,1757.6,3.0]
[1746020536184,6.12163142,1758.8,1758.4,5.29754206]
[1746020537466,34.6242,1758.7,1758.4,0.35064746]
[1746020537873,6.12163142,1758.8,1758.4,0.35064746]
[1746020538076,6.12163142,1758.8,1757.7,3.93479884]
[1746020538313,8.746,1758.7,1757.8,3.0]
[1746020538610,24.4959,1758.6,1757.7,3.93479884]
[1746020538910,8.746,1758.5,1757.7,3.93479884]
[1746020539110,6.12163142,1758.8,1757.7,3.93479884]
[1746020539423,8.746,1758.7,1757.8,4.1255]
[1746020540010,8.746,1758.7,1757.8,1.1255]
[1746020540590,0.55,1758.5,1757.5,2.84944877]
[1746020540786,1.5304,1758.6,1757.5,2.84944877]
[1746020540999,8.746,1758.5,1757.7,2.80929884]
[1746020541234,8.746,1758.5,1757.5,2.84944877]
[1746020541412,1.5304,1758.6,1757.5,2.84944877]
[1746020541612,8.744,1758.4,1757.5,2.84944877]
[1746020542125,14.249,1758.3,1757.5,2.84944877]
[1746020542329,14.249,1758.3,1756.8,2.80898791]
[1746020542330,0.55,1758.0,1756.8,2.80898791]
[1746020542649,0.55,1758.0,1756.0,11.17516972]
[1746020542650,0.55,1757.8,1756.5,2.80543973]
[1746020542963,1.584,1757.7,1756.4,1.1255]
[1746020543106,8.744,1757.6,1756.4,1.1255]
[1746020543441,8.744,1757.6,1756.7,2.80010772]
[1746020543644,8.744,1757.6,1756.4,1.1255]
[1746020543645,8.744,1757.5,1756.4,1.1255]
[1746020544131,8.744,1757.5,1756.5,2.80543973]
[1746020544334,8.74908994,1757.5,1756.5,2.80543973]
[1746020544737,0.00508994,1757.5,1756.4,1.1255]
[1746020544949,8.745,1757.4,1756.4,1.1255]
[1746020545472,0.00508994,1757.5,1756.5,2.80543973]
[1746020545670,8.745,1757.4,1756.8,5.80898791]
[1746020546139,0.00508994,1757.5,1756.8,5.80898791]
[1746020546339,20.398,1757.7,1757.6,10.18714534]
[1746020546674,8.745,1757.4,1756.6,3.0]
[1746020546877,3.95726532,1757.6,1756.8,1.1255]
[1746020547029,3.95726532,1757.6,1756.9,0.55]
[1746020547375,3.95726532,1757.6,1757.0,1.1255]
[1746020548065,3.95726532,1757.6,1757.3,3.0]
[1746020550569,3.95726532,1757.6,1757.0,4.1255]
[1746020550731,3.95726532,1757.6,1757.5,3.0]
[1746020551070,3.95726532,1757.6,1757.1,3.0]
[1746020552185,8.744,1758.3,1757.1,3.42290243]
[1746020552342,8.83956801,1758.3,1757.1,3.42290243]
[1746020552902,8.83956801,1758.3,1757.4,2.87155056]
[1746020553040,8.744,1758.2,1757.6,2.80908813]
[1746020553390,8.75347043,1758.2,1757.6,2.80908813]
[1746020553675,1.5593,1758.1,1757.1,3.27809133]
[1746020553980,1.65486801,1758.1,1756.8,2.80898791]
[1746020554143,0.09556856,1758.0,1757.2,2.86220985]
[1746020554340,14.251,1757.9,1756.7,1.1255]
[1746020554666,1.6563,1757.8,1756.7,0.4294849]
[1746020554876,1.6563,1757.6,1756.2,3.97000646]
[1746020555065,1.6563,1757.4,1756.2,3.97000646]
[1746020555375,0.09556911,1757.3,1756.4,2.88356998]
[1746020555536,0.09556911,1757.3,1756.3,2.86743004]
[1746020555742,0.09556911,1757.3,1756.3,12.15693007]
[1746020555940,0.09556911,1757.3,1756.5,2.80543973]
[1746020556171,8.489,1757.2,1756.5,2.80543973]
[1746020556541,8.489,1757.3,1756.5,2.80543973]
[1746020557245,1.6563,1757.4,1756.4,3.0]
[1746020557437,1.6563,1757.4,1756.7,3.0]
[1746020557850,1.6563,1757.4,1756.4,2.88088197]
[1746020558051,14.257,1757.3,1755.7,2.87790436]
[1746020558265,0.55,1757.2,1755.4,2.82150563]
[1746020558475,0.55,1756.9,1755.4,3.24811057]
[1746020558659,18.815,1756.8,1755.4,3.24811057]
[1746020558865,18.815,1756.8,1755.7,3.0]
[1746020559045,18.815,1756.8,1755.9,3.0]
[1746020559248,2.65601201,1756.7,1755.9,5.17569868]
[1746020559478,18.815,1756.8,1755.9,2.17569868]
[1746020559679,8.49,1756.7,1755.9,5.04121594]
[1746020559978,8.49,1756.7,1755.9,4.45761726]
[1746020560155,22.752,1756.6,1755.5,2.81446806]
[1746020560351,8.49,1756.6,1755.6,3.0]
[1746020560550,8.49,1756.5,1755.9,2.86551726]
[1746020560770,8.84769452,1757.9,1756.1,2.8962118]
[1746020561106,18.817,1757.6,1756.0,2.80128465]
[1746020561254,10.78744641,1759.4,1756.2,5.84029777]
[1746020561255,1.6413,1757.4,1756.2,5.84029777]
[1746020561448,8.49,1757.3,1756.2,5.84029777]
[1746020561644,1.6413,1757.2,1756.2,5.84029777]
[1746020561846,8.49,1757.1,1756.6,2.87519321]
[1746020562181,1.6413,1757.2,1756.7,5.88524772]
[1746020562687,8.85716495,1758.2,1756.7,7.54504772]
[1746020562688,20.4225,1758.1,1756.7,7.54504772]
[1746020562986,8.491,1758.0,1757.0,5.84361801]
[1746020563282,8.491,1758.0,1757.2,3.0]
[1746020563715,1.5665,1757.8,1756.8,1.5011]
[1746020563916,14.254,1757.7,1756.4,4.38198197]
[1746020564218,0.1032943,1757.7,1756.5,2.84420943]
[1746020564923,8.491,1757.6,1756.5,2.84420943]
[1746020565075,0.1032943,1757.7,1756.7,2.88524772]
[1746020565076,8.49,1757.5,1756.7,2.88524772]
[1746020565275,8.49,1757.5,1756.9,2.80684643]
[1746020565504,8.49,1757.5,1757.1,2.83613534]
[1746020565714,5.88888201,1757.5,1757.3,2.88988957]
[1746020565878,14.254,1757.4,1756.5,2.84420943]
[1746020566078,5.99209601,1757.5,1756.5,2.84420943]
[1746020566289,0.103214,1757.5,1757.1,2.83613534]
[1746020566575,8.49,1757.4,1757.3,2.88988957]
[1746020566807,41.563,1757.4,1756.3,2.80326956]
[1746020566985,0.1031345,1757.3,1756.3,2.80326956]
[1746020567185,0.1031345,1757.3,1756.0,1.6506]
[1746020567186,14.258,1757.2,1756.1,2.8989563]
[1746020567375,0.1031345,1757.2,1756.1,2.8989563]
[1746020567572,0.55,1757.1,1756.1,2.8989563]
[1746020567776,0.1030558,1757.0,1755.8,2.81772421]
[1746020568018,0.55,1756.9,1755.7,2.82819192]
[1746020568322,0.55,1756.7,1755.5,2.80493156]
[1746020568626,18.45726291,1756.6,1755.5,2.80493156]
[1746020568916,1.6028,1756.4,1755.1,2.83370676]
[1746020569420,1.5012,1756.2,1755.1,2.83370676]
[1746020569579,8.59397789,1756.1,1755.1,2.83370676]
[1746020569911,0.10290075,1756.0,1755.3,2.88689956]
[1746020570081,0.10290075,1756.0,1755.2,2.84019023]
[1746020570282,8.491,1756.1,1755.1,2.83370676]
[1746020570507,8.491,1756.1,1755.5,2.80493156]
[1746020570704,8.491,1756.1,1755.7,2.82819192]
[1746020571011,5.891,1756.1,1755.9,2.8154492]
[1746020571277,5.891,1756.1,1755.8,3.0]
[1746020571278,1.5012,1756.2,1756.0,5.88057637]
[1746020571399,1e-08,1756.2,1756.1,3.0]
[1746020571585,14.264,1756.4,1755.5,2.80493156]
[1746020571785,8.493,1756.2,1755.7,2.82819192]
[1746020572017,14.264,1756.4,1756.0,3.0]
[1746020572323,5.80249517,1756.3,1755.8,2.81772421]
[1746020572526,5.02802009,1756.3,1755.8,3.55977663]
[1746020573225,0.41715145,1757.7,1755.8,3.55977663]
[1746020573226,18.823,1757.4,1756.0,5.88057637]
[1746020573519,8.233,1757.5,1756.6,3.0]
[1746020573682,8.233,1757.5,1756.7,1.5411]
[1746020574336,18.823,1757.9,1756.7,1.5411]
[1746020574337,1.582,1757.7,1756.7,1.5411]
[1746020574487,8.233,1757.5,1756.7,1.5411]
[1746020574691,14.255,1757.4,1756.6,2.85280716]
[1746020574890,8.233,1757.5,1756.5,2.83694973]
[1746020575188,8.233,1757.5,1756.6,2.85280716]
[1746020575393,8.233,1757.5,1756.5,2.83694973]
[1746020575825,8.233,1757.5,1756.5,3.2853747]
[1746020576033,1.582,1757.7,1756.8,5.85146844]
[1746020576331,9.815,1757.7,1757.2,3.0]
[1746020576494,24.066,1757.7,1757.2,5.81714191]
[1746020578838,15.833,1757.7,1757.2,5.81714191]
[1746020579039,8.232,1757.6,1757.2,5.81714191]
[1746020579239,14.254,1757.5,1757.2,5.81714191]
[1746020579725,14.254,1757.5,1756.5,2.83694973]
[1746020580050,1.5612,1757.4,1756.2,2.82932686]
[1746020580373,1.5612,1757.2,1756.2,2.82932686]
[1746020580526,14.261,1757.1,1756.1,1.6125]
[1746020581025,8.231,1757.0,1756.1,1.6125]
[1746020581476,8.231,1757.1,1756.2,8.84769452]
[1746020581681,8.231,1757.3,1756.3,4.5618]
[1746020582383,8.231,1757.4,1756.7,1.5594]
[1746020582604,8.231,1757.5,1756.7,1.5594]
[1746020583268,8.231,1757.5,1756.8,3.0]
[1746020584239,8.231,1757.5,1757.0,3.0]
[1746020584439,18.82,1757.7,1757.0,3.0]
[1746020584759,14.253,1757.6,1757.0,3.0]
[1746020584960,0.55,1757.4,1756.4,4.34404559]